[Event "*** Titled Tuesday Blitz"]
[Site "Chess.com"]
[Date "2018.08.07"]
[Round "5"]
[White "NormWeinstein"]
[Black "MFBerna"]
[Result "1/2-1/2"]
[WhiteElo "2387"]
[BlackElo "2282"]
[TimeControl "180+2"]
[EndTime "14:05:49 PDT"]
[Termination "Game drawn - insufficient material"]

1. e4 {[%clk 0:03:01.9]} 1... c6 {[%clk 0:02:58.8]} 2. d4 {[%clk 0:03:01.7]}
2... d5 {[%clk 0:03:00.7]} 3. exd5 {[%clk 0:03:02.4]} 3... cxd5 {[%clk
0:03:02.6]} 4. c4 {[%clk 0:03:03.3]} 4... Nf6 {[%clk 0:03:03]} 5. Nc3 {[%clk
0:03:04.7]} 5... Nc6 {[%clk 0:03:04.4]} 6. Nf3 {[%clk 0:03:05.6]} 6... Bg4
{[%clk 0:03:02.3]} 7. cxd5 {[%clk 0:03:05.8]} 7... Bxf3 {[%clk 0:03:02.9]} 8.
Qxf3 {[%clk 0:03:04.3]} 8... Nxd4 {[%clk 0:02:58.6]} 9. Qd1 {[%clk 0:02:52.6]}
9... e5 {[%clk 0:02:58]} 10. dxe6 {[%clk 0:02:50.6]} 10... fxe6 {[%clk
0:02:53.4]} 11. Be3 {[%clk 0:02:41.9]} 11... Bc5 {[%clk 0:02:53.6]} 12. Qa4+
{[%clk 0:02:24.3]} 12... Qd7 {[%clk 0:02:36.1]} 13. Qxd7+ {[%clk 0:02:17.3]}
13... Nxd7 {[%clk 0:02:38]} 14. O-O-O {[%clk 0:02:13.5]} 14... e5 {[%clk
0:02:17.6]} 15. Ne4 {[%clk 0:01:42.3]} 15... Bb6 {[%clk 0:02:15.5]} 16. Bc4
{[%clk 0:01:32.7]} 16... Ke7 {[%clk 0:01:46.2]} 17. Kb1 {[%clk 0:01:25.5]} 17...
Nf6 {[%clk 0:01:41]} 18. Ng5 {[%clk 0:01:09.6]} 18... Rac8 {[%clk 0:01:31.9]}
19. b3 {[%clk 0:01:07.6]} 19... Rhf8 {[%clk 0:01:19.9]} 20. Rhe1 {[%clk
0:01:04.7]} 20... Rfd8 {[%clk 0:00:20.4]} 21. Nf7 {[%clk 0:00:57.6]} 21... Rxc4
{[%clk 0:00:17.4]} 22. Nxd8 {[%clk 0:00:58.5]} 22... Rb4 {[%clk 0:00:12.5]} 23.
Nxb7 {[%clk 0:00:33.6]} 23... Nd5 {[%clk 0:00:13.4]} 24. Bd2 {[%clk 0:00:28.8]}
24... Rb5 {[%clk 0:00:10.9]} 25. Rxe5+ {[%clk 0:00:27]} 25... Kf6 {[%clk
0:00:11.8]} 26. Ree1 {[%clk 0:00:23.5]} 26... Bc7 {[%clk 0:00:07.1]} 27. Na5
{[%clk 0:00:15.3]} 27... Ne6 {[%clk 0:00:03.6]} 28. Nc4 {[%clk 0:00:14.2]} 28...
a5 {[%clk 0:00:04.2]} 29. Kc2 {[%clk 0:00:06]} 29... a4 {[%clk 0:00:04.7]} 30.
Rb1 {[%clk 0:00:06.4]} 30... axb3+ {[%clk 0:00:05.3]} 31. axb3 {[%clk
0:00:05.9]} 31... Nd4+ {[%clk 0:00:05.5]} 32. Kd3 {[%clk 0:00:05.7]} 32... Nxb3
{[%clk 0:00:06.6]} 33. Rxb3 {[%clk 0:00:06.3]} 33... Rxb3+ {[%clk 0:00:06.9]}
34. Kc2 {[%clk 0:00:07.8]} 34... Rb5 {[%clk 0:00:07.2]} 35. Ne3 {[%clk
0:00:08.6]} 35... Nf4 {[%clk 0:00:06.5]} 36. Bc3+ {[%clk 0:00:09.5]} 36... Kg6
{[%clk 0:00:07]} 37. g3 {[%clk 0:00:10.7]} 37... Ne6 {[%clk 0:00:07]} 38. Nc4
{[%clk 0:00:11.3]} 38... Ng5 {[%clk 0:00:06.2]} 39. Ne5+ {[%clk 0:00:12.4]}
39... Bxe5 {[%clk 0:00:06.3]} 40. Rxe5 {[%clk 0:00:13.8]} 40... Rxe5 {[%clk
0:00:07.3]} 41. Bxe5 {[%clk 0:00:14.9]} 41... Nf3 {[%clk 0:00:08.9]} 42. Bf4
{[%clk 0:00:15.4]} 42... Nxh2 {[%clk 0:00:09.6]} 43. Kd3 {[%clk 0:00:16.6]}
43... Kf5 {[%clk 0:00:10.8]} 44. Ke2 {[%clk 0:00:17.9]} 44... Kg4 {[%clk
0:00:12]} 45. Be3 {[%clk 0:00:19]} 45... Nf3 {[%clk 0:00:12.5]} 46. Bf4 {[%clk
0:00:20.1]} 46... g5 {[%clk 0:00:13.4]} 47. Bd6 {[%clk 0:00:20.7]} 47... h5
{[%clk 0:00:14.1]} 48. Kf1 {[%clk 0:00:21.7]} 48... Kh3 {[%clk 0:00:14]} 49. Be7
{[%clk 0:00:21.4]} 49... Kg4 {[%clk 0:00:10.2]} 50. Kg2 {[%clk 0:00:21.3]} 50...
Ne1+ {[%clk 0:00:11.4]} 51. Kf1 {[%clk 0:00:22.2]} 51... Nd3 {[%clk 0:00:12]}
52. Kg2 {[%clk 0:00:22.8]} 52... Ne5 {[%clk 0:00:12]} 53. Bxg5 {[%clk
0:00:22.2]} 53... Kxg5 {[%clk 0:00:13.2]} 54. f4+ {[%clk 0:00:23]} 54... Kf5
{[%clk 0:00:14.7]} 55. fxe5 {[%clk 0:00:24.4]} 55... Kxe5 {[%clk 0:00:15.6]} 56.
Kh3 {[%clk 0:00:25.8]} 56... Kf5 {[%clk 0:00:17.1]} 57. Kh4 {[%clk 0:00:27]}
57... Kg6 {[%clk 0:00:18.5]} 58. g4 {[%clk 0:00:27.8]} 58... hxg4 {[%clk
0:00:19.8]} 59. Kxg4 {[%clk 0:00:29]} 1/2-1/2

[Event "*** Titled Tuesday Blitz"]
[Site "Chess.com"]
[Date "2018.08.07"]
[Round "5"]
[White "DoctorSocrates"]
[Black "Zaven_ChessMood"]
[Result "1/2-1/2"]
[WhiteElo "2547"]
[BlackElo "2880"]
[TimeControl "180+2"]
[EndTime "14:05:58 PDT"]
[Termination "Game drawn by repetition"]

1. Nc3 {[%clk 0:02:58.8]} 1... d5 {[%clk 0:03:00.1]} 2. e4 {[%clk 0:02:59.4]}
2... d4 {[%clk 0:03:00.8]} 3. Nce2 {[%clk 0:02:59.9]} 3... d3 {[%clk 0:03:02]}
4. cxd3 {[%clk 0:03:00]} 4... c5 {[%clk 0:03:02.4]} 5. Nf3 {[%clk 0:02:59.9]}
5... Nc6 {[%clk 0:03:03.6]} 6. d4 {[%clk 0:02:57.7]} 6... cxd4 {[%clk
0:03:04.2]} 7. Ng3 {[%clk 0:02:58.3]} 7... e5 {[%clk 0:03:05.6]} 8. Bc4 {[%clk
0:02:58.6]} 8... Be7 {[%clk 0:03:04.6]} 9. O-O {[%clk 0:02:58.7]} 9... Nf6
{[%clk 0:03:06]} 10. d3 {[%clk 0:02:59.6]} 10... O-O {[%clk 0:03:06.4]} 11. h3
{[%clk 0:02:59.5]} 11... h6 {[%clk 0:03:05.1]} 12. Nh2 {[%clk 0:02:52.2]} 12...
Na5 {[%clk 0:03:05.3]} 13. Bb5 {[%clk 0:02:51]} 13... a6 {[%clk 0:03:05.3]} 14.
Ba4 {[%clk 0:02:51.9]} 14... b5 {[%clk 0:03:06.9]} 15. Bc2 {[%clk 0:02:53.3]}
15... Nc6 {[%clk 0:03:05.1]} 16. f4 {[%clk 0:02:53.6]} 16... exf4 {[%clk
0:03:06.2]} 17. Bxf4 {[%clk 0:02:54.9]} 17... Bd6 {[%clk 0:03:07.6]} 18. Qd2
{[%clk 0:02:53.8]} 18... Ra7 {[%clk 0:03:01.6]} 19. Rac1 {[%clk 0:02:51.5]}
19... Ne5 {[%clk 0:02:57.4]} 20. Nf3 {[%clk 0:02:50.8]} 20... Re8 {[%clk
0:02:46.7]} 21. Bb3 {[%clk 0:02:49.3]} 21... Nxf3+ {[%clk 0:02:31.7]} 22. Rxf3
{[%clk 0:02:49.2]} 22... Bxf4 {[%clk 0:02:33.3]} 23. Qxf4 {[%clk 0:02:48.8]}
23... Be6 {[%clk 0:02:34.8]} 24. Bxe6 {[%clk 0:02:45.7]} 24... fxe6 {[%clk
0:02:36.4]} 25. Rf2 {[%clk 0:02:40.3]} 25... Nh7 {[%clk 0:02:34.9]} 26. Rfc2
{[%clk 0:02:34.9]} 26... Rf7 {[%clk 0:02:33.4]} 27. Qe5 {[%clk 0:02:34.3]} 27...
Nf8 {[%clk 0:02:31.7]} 28. Rc7 {[%clk 0:02:17.5]} 28... Ng6 {[%clk 0:02:30.4]}
29. Qc5 {[%clk 0:02:09.1]} 29... Rxc7 {[%clk 0:02:30.2]} 30. Qxc7 {[%clk
0:02:11]} 30... Qg5 {[%clk 0:02:31.8]} 31. Rf1 {[%clk 0:02:05.2]} 31... Ne5
{[%clk 0:02:27.5]} 32. Kh2 {[%clk 0:02:01.8]} 32... Kh7 {[%clk 0:02:28.4]} 33.
Qd6 {[%clk 0:01:50.9]} 33... Nxd3 {[%clk 0:02:26.9]} 34. Qxd4 {[%clk 0:01:51.1]}
34... Rd8 {[%clk 0:02:24]} 35. Qb6 {[%clk 0:01:46.2]} 35... Ne5 {[%clk
0:02:24.3]} 36. Qxe6 {[%clk 0:01:42.9]} 36... Rd2 {[%clk 0:02:17.6]} 37. b4
{[%clk 0:01:23]} 37... Nc4 {[%clk 0:02:10.8]} 38. Rf8 {[%clk 0:01:20.3]} 38...
Qe5 {[%clk 0:01:14.9]} 39. Qg8+ {[%clk 0:01:14.3]} 39... Kg6 {[%clk 0:01:15.8]}
40. Qf7+ {[%clk 0:01:15.1]} 40... Kh7 {[%clk 0:01:16.6]} 41. Qg8+ {[%clk
0:01:13.2]} 41... Kg6 {[%clk 0:01:17.3]} 42. Re8 {[%clk 0:01:12.5]} 42... Rxg2+
{[%clk 0:00:56.8]} 43. Kxg2 {[%clk 0:01:14.4]} 43... Qb2+ {[%clk 0:00:57.8]} 44.
Kf3 {[%clk 0:01:08.6]} 44... Qc3+ {[%clk 0:00:54.5]} 45. Kf2 {[%clk 0:01:01.2]}
45... Qe3+ {[%clk 0:00:51.3]} 46. Kg2 {[%clk 0:01:01.7]} 46... Qd2+ {[%clk
0:00:52.4]} 47. Kg1 {[%clk 0:01:00.6]} 47... Qe3+ {[%clk 0:00:49.5]} 48. Kg2
{[%clk 0:01:01.5]} 48... Qd2+ {[%clk 0:00:48.3]} 49. Kf3 {[%clk 0:00:58.5]}
49... Qc3+ {[%clk 0:00:46.3]} 50. Kg4 {[%clk 0:00:42.5]} 50... Ne3+ {[%clk
0:00:45.7]} 51. Kf4 {[%clk 0:00:40.5]} 51... Ng2+ {[%clk 0:00:40.4]} 52. Kg4
{[%clk 0:00:41.1]} 52... Ne3+ {[%clk 0:00:19]} 53. Kf4 {[%clk 0:00:41.8]} 53...
Ng2+ {[%clk 0:00:19.4]} 54. Kg4 {[%clk 0:00:41.3]} 54... Ne3+ {[%clk 0:00:17.8]}
55. Kf4 {[%clk 0:00:42.1]} 55... Ng2+ {[%clk 0:00:17.9]} 56. Kg4 {[%clk
0:00:41.8]} 56... Ne3+ {[%clk 0:00:13.1]} 57. Kf4 {[%clk 0:00:40.7]} 57... Ng2+
{[%clk 0:00:14.2]} 58. Kg4 {[%clk 0:00:41.1]} 58... Ne3+ {[%clk 0:00:15.5]}
1/2-1/2

[Event "*** Titled Tuesday Blitz"]
[Site "Chess.com"]
[Date "2018.08.07"]
[Round "5"]
[White "BasilSmash"]
[Black "Margency"]
[Result "0-1"]
[WhiteElo "2461"]
[BlackElo "2728"]
[TimeControl "180+2"]
[EndTime "14:06:02 PDT"]
[Termination "Margency won by resignation"]

1. d4 {[%clk 0:03:01.9]} 1... Nf6 {[%clk 0:03:00.6]} 2. Nf3 {[%clk 0:03:02.5]}
2... g6 {[%clk 0:03:00.9]} 3. Bg5 {[%clk 0:03:02.8]} 3... Bg7 {[%clk 0:03:01.4]}
4. Nbd2 {[%clk 0:03:03.6]} 4... d6 {[%clk 0:03:00.5]} 5. c3 {[%clk 0:03:03.5]}
5... h6 {[%clk 0:03:01]} 6. Bh4 {[%clk 0:03:03.2]} 6... g5 {[%clk 0:03:01.3]} 7.
Bg3 {[%clk 0:03:04.2]} 7... Nh5 {[%clk 0:03:02.1]} 8. e4 {[%clk 0:03:04]} 8...
e6 {[%clk 0:03:01.4]} 9. Bd3 {[%clk 0:02:59.8]} 9... a6 {[%clk 0:03:00.4]} 10.
a4 {[%clk 0:02:58.1]} 10... b6 {[%clk 0:02:57.9]} 11. Qe2 {[%clk 0:02:58.7]}
11... Bb7 {[%clk 0:02:55.5]} 12. Nc4 {[%clk 0:02:58.2]} 12... Qe7 {[%clk
0:02:49.2]} 13. Ne3 {[%clk 0:02:44.6]} 13... Nd7 {[%clk 0:02:46.3]} 14. Ng4
{[%clk 0:02:33.4]} 14... Ndf6 {[%clk 0:02:31.6]} 15. Nxf6+ {[%clk 0:02:26.4]}
15... Bxf6 {[%clk 0:02:32.5]} 16. e5 {[%clk 0:02:22.9]} 16... Bg7 {[%clk
0:02:31.7]} 17. Be4 {[%clk 0:02:16.3]} 17... Bxe4 {[%clk 0:02:07.6]} 18. Qxe4
{[%clk 0:02:18.2]} 18... d5 {[%clk 0:02:08.7]} 19. Qe2 {[%clk 0:02:17.1]} 19...
c5 {[%clk 0:02:06]} 20. O-O {[%clk 0:02:14.8]} 20... O-O {[%clk 0:01:59.1]} 21.
h4 {[%clk 0:02:00.5]} 21... Nxg3 {[%clk 0:01:48.2]} 22. fxg3 {[%clk 0:02:02.4]}
22... g4 {[%clk 0:01:49.5]} 23. Ne1 {[%clk 0:02:02.5]} 23... h5 {[%clk
0:01:50.8]} 24. Nd3 {[%clk 0:02:03]} 24... f5 {[%clk 0:01:39.7]} 25. exf6 {[%clk
0:01:49]} 25... Rxf6 {[%clk 0:01:34]} 26. Rxf6 {[%clk 0:01:46.2]} 26... Qxf6
{[%clk 0:01:19.6]} 27. Rf1 {[%clk 0:01:42.8]} 27... Qg6 {[%clk 0:01:12.1]} 28.
Nf4 {[%clk 0:01:41]} 28... Qe4 {[%clk 0:01:09.4]} 29. Qxe4 {[%clk 0:01:40]}
29... dxe4 {[%clk 0:01:10.6]} 30. Nxe6 {[%clk 0:01:39.7]} 30... cxd4 {[%clk
0:01:11.6]} 31. cxd4 {[%clk 0:01:38.6]} 31... Rc8 {[%clk 0:01:02.2]} 32. Rf5
{[%clk 0:01:10.9]} 32... e3 {[%clk 0:00:43.2]} 33. Kf1 {[%clk 0:01:10.7]} 33...
Bh6 {[%clk 0:00:39.4]} 34. Ng5 {[%clk 0:00:53.9]} 34... Rc2 {[%clk 0:00:35.3]}
35. b4 {[%clk 0:00:50.4]} 35... Rd2 {[%clk 0:00:33.9]} 36. d5 {[%clk 0:00:49.2]}
36... Bf8 {[%clk 0:00:33.6]} 37. Ne4 {[%clk 0:00:45.8]} 37... Rd4 {[%clk
0:00:28.3]} 38. Rf4 {[%clk 0:00:39.1]} 38... Rxb4 {[%clk 0:00:23.4]} 39. Nf6+
{[%clk 0:00:33.2]} 39... Kh8 {[%clk 0:00:22.1]} 40. Nxh5 {[%clk 0:00:28.8]}
40... Rb1+ {[%clk 0:00:21]} 41. Ke2 {[%clk 0:00:29.4]} 41... Bc5 {[%clk
0:00:22.1]} 42. Rf7 {[%clk 0:00:21.7]} 42... Rb2+ {[%clk 0:00:21.7]} 43. Kd3
{[%clk 0:00:21.6]} 43... Kg8 {[%clk 0:00:18.1]} 44. Rf1 {[%clk 0:00:17.5]} 44...
Rd2+ {[%clk 0:00:16.6]} 45. Ke4 {[%clk 0:00:16.1]} 45... e2 {[%clk 0:00:17]} 46.
Re1 {[%clk 0:00:17.3]} 46... Bf2 {[%clk 0:00:16.6]} 47. Rxe2 {[%clk 0:00:13.5]}
47... Rxe2+ {[%clk 0:00:17.4]} 48. Kf5 {[%clk 0:00:15.4]} 48... Bd4 {[%clk
0:00:15.6]} 49. d6 {[%clk 0:00:14.2]} 49... Kf7 {[%clk 0:00:16.3]} 50. Nf4
{[%clk 0:00:12.9]} 50... Re5+ {[%clk 0:00:16.6]} 51. Kxg4 {[%clk 0:00:13.6]}
51... b5 {[%clk 0:00:17.2]} 52. axb5 {[%clk 0:00:12.9]} 52... axb5 {[%clk
0:00:18.2]} 53. h5 {[%clk 0:00:14.8]} 53... b4 {[%clk 0:00:18.4]} 54. h6 {[%clk
0:00:15.8]} 54... Re8 {[%clk 0:00:19.6]} 55. Kf5 {[%clk 0:00:12]} 55... b3
{[%clk 0:00:20.1]} 0-1

[Event "*** Titled Tuesday Blitz"]
[Site "Chess.com"]
[Date "2018.08.07"]
[Round "5"]
[White "nihalsarin"]
[Black "ahmadzada13"]
[Result "0-1"]
[WhiteElo "2757"]
[BlackElo "2650"]
[TimeControl "180+2"]
[EndTime "14:06:09 PDT"]
[Termination "ahmadzada13 won by checkmate"]

1. c4 {[%clk 0:03:01.9]} 1... c5 {[%clk 0:02:59.9]} 2. Nf3 {[%clk 0:03:01]} 2...
Nf6 {[%clk 0:03:00.2]} 3. Nc3 {[%clk 0:03:01.8]} 3... b6 {[%clk 0:03:00.7]} 4.
e4 {[%clk 0:02:57]} 4... d6 {[%clk 0:03:00.7]} 5. d4 {[%clk 0:02:57.5]} 5...
cxd4 {[%clk 0:03:01.7]} 6. Nxd4 {[%clk 0:02:59.4]} 6... Bb7 {[%clk 0:03:03]} 7.
Bd3 {[%clk 0:02:59.9]} 7... e6 {[%clk 0:03:03.3]} 8. O-O {[%clk 0:03:01]} 8...
Be7 {[%clk 0:03:03.1]} 9. Re1 {[%clk 0:03:02.4]} 9... Nbd7 {[%clk 0:03:01]} 10.
b3 {[%clk 0:03:03.8]} 10... O-O {[%clk 0:03:00.3]} 11. Bb2 {[%clk 0:03:04.6]}
11... a6 {[%clk 0:03:00.2]} 12. Qd2 {[%clk 0:03:04]} 12... Re8 {[%clk
0:03:00.5]} 13. Rad1 {[%clk 0:03:01.5]} 13... Bf8 {[%clk 0:02:58.2]} 14. Bb1
{[%clk 0:02:59.9]} 14... Qc7 {[%clk 0:02:55.9]} 15. h3 {[%clk 0:03:01]} 15...
Rad8 {[%clk 0:02:53.5]} 16. Nf3 {[%clk 0:03:00.9]} 16... Ne5 {[%clk 0:02:49.6]}
17. Qe2 {[%clk 0:03:02.3]} 17... Ng6 {[%clk 0:02:44.6]} 18. g3 {[%clk
0:02:56.3]} 18... d5 {[%clk 0:02:32.3]} 19. e5 {[%clk 0:02:55.4]} 19... Ne4
{[%clk 0:01:24.2]} 20. Nxe4 {[%clk 0:02:51.9]} 20... dxe4 {[%clk 0:01:18.9]} 21.
Bxe4 {[%clk 0:02:53.8]} 21... Bb4 {[%clk 0:01:16]} 22. Rf1 {[%clk 0:02:52.2]}
22... Bxe4 {[%clk 0:01:12]} 23. Qxe4 {[%clk 0:02:51.8]} 23... Rd7 {[%clk
0:01:12.7]} 24. Rxd7 {[%clk 0:02:39.4]} 24... Qxd7 {[%clk 0:01:13.6]} 25. h4
{[%clk 0:02:41.3]} 25... Rd8 {[%clk 0:01:10.6]} 26. h5 {[%clk 0:02:25.6]} 26...
Ne7 {[%clk 0:01:11.4]} 27. Ng5 {[%clk 0:02:26.2]} 27... Qd3 {[%clk 0:00:58.8]}
28. Qb7 {[%clk 0:01:51.4]} 28... Bc5 {[%clk 0:00:50.9]} 29. Ne4 {[%clk
0:01:52.5]} 29... Nf5 {[%clk 0:00:44]} 30. Kg2 {[%clk 0:01:38.6]} 30... Qc2
{[%clk 0:00:38.2]} 31. Bc1 {[%clk 0:01:28.7]} 31... Qxa2 {[%clk 0:00:30.5]} 32.
h6 {[%clk 0:01:29.3]} 32... gxh6 {[%clk 0:00:26.9]} 33. g4 {[%clk 0:01:17.5]}
33... Nh4+ {[%clk 0:00:23.5]} 34. Kg3 {[%clk 0:01:18.9]} 34... Qe2 {[%clk
0:00:17.3]} 35. Kxh4 {[%clk 0:00:37]} 35... Qxf1 {[%clk 0:00:14.2]} 36. Bxh6
{[%clk 0:00:20.1]} 36... Bxf2+ {[%clk 0:00:12.2]} 37. Nxf2 {[%clk 0:00:20.2]}
37... Qxf2+ {[%clk 0:00:12.8]} 38. Kh5 {[%clk 0:00:22.1]} 38... Qh2+ {[%clk
0:00:13.6]} 39. Kg5 {[%clk 0:00:23.4]} 39... Qd2+ {[%clk 0:00:15]} 40. Kh5
{[%clk 0:00:24.3]} 40... Qh2+ {[%clk 0:00:16]} 41. Kg5 {[%clk 0:00:25.5]} 41...
Qxe5+ {[%clk 0:00:14.6]} 42. Kh4 {[%clk 0:00:27]} 42... Qf6+ {[%clk 0:00:11.5]}
43. Bg5 {[%clk 0:00:26]} 43... Qf2+ {[%clk 0:00:12.4]} 44. Kh5 {[%clk
0:00:27.7]} 44... f6 {[%clk 0:00:11.7]} 45. Bh4 {[%clk 0:00:25.4]} 45... Qd4
{[%clk 0:00:08.4]} 46. Qe7 {[%clk 0:00:22.8]} 46... Qd7 {[%clk 0:00:07.8]} 47.
Qxf6 {[%clk 0:00:17.4]} 47... Rf8 {[%clk 0:00:08.7]} 48. Qg5+ {[%clk 0:00:17.6]}
48... Qg7 {[%clk 0:00:09.4]} 49. Qxg7+ {[%clk 0:00:17.3]} 49... Kxg7 {[%clk
0:00:10.9]} 50. Bg5 {[%clk 0:00:17.9]} 50... Rf3 {[%clk 0:00:10.7]} 51. b4
{[%clk 0:00:19.5]} 51... Rh3+ {[%clk 0:00:11.4]} 52. Bh4 {[%clk 0:00:20.3]}
52... a5 {[%clk 0:00:12.9]} 53. bxa5 {[%clk 0:00:21.4]} 53... bxa5 {[%clk
0:00:14.5]} 54. c5 {[%clk 0:00:23.3]} 54... Rc3 {[%clk 0:00:15.3]} 55. Be7
{[%clk 0:00:23.9]} 55... Rc4 {[%clk 0:00:15.9]} 56. g5 {[%clk 0:00:25.5]} 56...
a4 {[%clk 0:00:16.9]} 57. Bf6+ {[%clk 0:00:26.9]} 57... Kf7 {[%clk 0:00:17.9]}
58. Kh6 {[%clk 0:00:25.4]} 58... Rh4# {[%clk 0:00:18.4]} 0-1

[Event "*** Titled Tuesday Blitz"]
[Site "Chess.com"]
[Date "2018.08.07"]
[Round "5"]
[White "AndrewDGreen"]
[Black "ChessicallyInclined"]
[Result "0-1"]
[WhiteElo "2161"]
[BlackElo "2361"]
[TimeControl "180+2"]
[EndTime "14:06:14 PDT"]
[Termination "ChessicallyInclined won by checkmate"]

1. d4 {[%clk 0:03:01.9]} 1... f5 {[%clk 0:02:58.7]} 2. Bg5 {[%clk 0:03:02.3]}
2... g6 {[%clk 0:02:57.7]} 3. Nc3 {[%clk 0:03:01.7]} 3... Bg7 {[%clk 0:02:58.8]}
4. e3 {[%clk 0:02:57]} 4... Nf6 {[%clk 0:02:56.8]} 5. h4 {[%clk 0:02:57]} 5...
h6 {[%clk 0:02:55.6]} 6. Bf4 {[%clk 0:02:57.7]} 6... d6 {[%clk 0:02:54.4]} 7.
Qf3 {[%clk 0:02:56.9]} 7... O-O {[%clk 0:02:47.4]} 8. Qg3 {[%clk 0:02:52]} 8...
Qe8 {[%clk 0:02:46]} 9. h5 {[%clk 0:01:47.6]} 9... g5 {[%clk 0:02:23.2]} 10.
Bxg5 {[%clk 0:01:47.4]} 10... hxg5 {[%clk 0:02:24]} 11. h6 {[%clk 0:01:48.8]}
11... Bh8 {[%clk 0:02:18.5]} 12. Qxg5+ {[%clk 0:01:01]} 12... Kh7 {[%clk
0:02:15.3]} 13. Nf3 {[%clk 0:00:49]} 13... Rg8 {[%clk 0:02:10.2]} 14. Qh4 {[%clk
0:00:46.7]} 14... Rg4 {[%clk 0:02:00.9]} 15. Ng5+ {[%clk 0:00:33.2]} 15... Kg6
{[%clk 0:01:59.4]} 16. Qh2 {[%clk 0:00:22.6]} 16... Rxg5 {[%clk 0:01:58.4]} 17.
f4 {[%clk 0:00:22]} 17... Rh5 {[%clk 0:01:54.1]} 18. Qg3+ {[%clk 0:00:22.6]}
18... Kh7 {[%clk 0:01:48.1]} 19. Rxh5 {[%clk 0:00:20.2]} 19... Qxh5 {[%clk
0:01:50]} 20. Be2 {[%clk 0:00:21.5]} 20... Qg6 {[%clk 0:01:48.6]} 21. Qh4 {[%clk
0:00:21.3]} 21... Be6 {[%clk 0:01:30.8]} 22. O-O-O {[%clk 0:00:10.2]} 22... Nbd7
{[%clk 0:01:30.5]} 23. g4 {[%clk 0:00:09.6]} 23... Rg8 {[%clk 0:01:12.3]} 24. g5
{[%clk 0:00:09.3]} 24... Ng4 {[%clk 0:01:07.8]} 25. e4 {[%clk 0:00:07]} 25...
Nf8 {[%clk 0:00:55.7]} 26. d5 {[%clk 0:00:07.3]} 26... Bd7 {[%clk 0:00:55.7]}
27. exf5 {[%clk 0:00:03.6]} 27... Qxf5 {[%clk 0:00:57.6]} 28. Bd3 {[%clk
0:00:04]} 28... Ng6 {[%clk 0:00:58.4]} 29. Bxf5 {[%clk 0:00:02.9]} 29... Bxf5
{[%clk 0:01:00.1]} 30. Qg3 {[%clk 0:00:03.4]} 30... a6 {[%clk 0:00:29.3]} 31.
Re1 {[%clk 0:00:04.3]} 31... Re8 {[%clk 0:00:28]} 32. a3 {[%clk 0:00:05.3]}
32... Kg8 {[%clk 0:00:28.2]} 33. Qg1 {[%clk 0:00:05.8]} 33... c5 {[%clk
0:00:24.9]} 34. Qg3 {[%clk 0:00:06.7]} 34... b5 {[%clk 0:00:23.9]} 35. Rh1
{[%clk 0:00:07.5]} 35... Kh7 {[%clk 0:00:24.4]} 36. Rg1 {[%clk 0:00:07.8]} 36...
Bd4 {[%clk 0:00:25.1]} 37. Re1 {[%clk 0:00:08.2]} 37... Bf2 {[%clk 0:00:24.7]}
38. Qf3 {[%clk 0:00:08.9]} 38... Bxe1 {[%clk 0:00:24.8]} 39. Qe2 {[%clk
0:00:10.1]} 39... Bg3 {[%clk 0:00:24.7]} 40. Qf3 {[%clk 0:00:10.3]} 40... Bxf4+
{[%clk 0:00:26]} 41. Kb1 {[%clk 0:00:11]} 41... N4e5 {[%clk 0:00:25.7]} 42. Qf2
{[%clk 0:00:11.1]} 42... Rf8 {[%clk 0:00:24.1]} 43. Qe2 {[%clk 0:00:11.3]} 43...
Bxg5 {[%clk 0:00:24.7]} 44. a4 {[%clk 0:00:12.3]} 44... bxa4 {[%clk 0:00:24.1]}
45. Qxa6 {[%clk 0:00:13]} 45... Bxh6 {[%clk 0:00:21.8]} 46. Nxa4 {[%clk
0:00:14.2]} 46... Bg7 {[%clk 0:00:21.7]} 47. Nc3 {[%clk 0:00:15.1]} 47... Nf4
{[%clk 0:00:21]} 48. Qf1 {[%clk 0:00:15.3]} 48... Bg6 {[%clk 0:00:21.6]} 49.
Qh1+ {[%clk 0:00:15.5]} 49... Kg8 {[%clk 0:00:22.8]} 50. Qh4 {[%clk 0:00:16.1]}
50... e6 {[%clk 0:00:15.6]} 51. dxe6 {[%clk 0:00:16.4]} 51... Nxe6 {[%clk
0:00:17.5]} 52. Qh3 {[%clk 0:00:16.4]} 52... Nd4 {[%clk 0:00:17.8]} 53. Nd5
{[%clk 0:00:15.6]} 53... Bxc2+ {[%clk 0:00:16.9]} 54. Kc1 {[%clk 0:00:14.9]}
54... Rf1+ {[%clk 0:00:14]} 55. Kd2 {[%clk 0:00:16.3]} 55... Nef3+ {[%clk
0:00:12.2]} 56. Ke3 {[%clk 0:00:14.8]} 56... Re1+ {[%clk 0:00:13.6]} 57. Kf4
{[%clk 0:00:11.3]} 57... Be5+ {[%clk 0:00:13.8]} 58. Kg4 {[%clk 0:00:10.4]}
58... Rg1+ {[%clk 0:00:15]} 59. Kh5 {[%clk 0:00:10.1]} 59... Rg5+ {[%clk
0:00:16.1]} 60. Kh6 {[%clk 0:00:09.2]} 60... Bg7# {[%clk 0:00:17.7]} 0-1